[Event "*** Titled Tuesday Blitz"]
[Site "Chess.com"]
[Date "2020.05.19"]
[Round "8"]
[White "Quaternitychess"]
[Black "Korchmar_Vasiliy"]
[Result "1-0"]
[WhiteElo "2801"]
[BlackElo "2612"]
[TimeControl "180+1"]
[EndTime "13:36:01 PDT"]
[Termination "Quaternitychess won by resignation"]

1. e4 {[%clk 0:03:00.9]} 1... c5 {[%clk 0:02:59.7]} 2. Nf3 {[%clk 0:03:00.8]}
2... d6 {[%clk 0:02:59.7]} 3. Nc3 {[%clk 0:03:01.4]} 3... Nc6 {[%clk 0:02:59.2]}
4. d4 {[%clk 0:03:01.6]} 4... cxd4 {[%clk 0:03:00.1]} 5. Nxd4 {[%clk 0:03:01.7]}
5... Nf6 {[%clk 0:03:00.7]} 6. f3 {[%clk 0:03:01.8]} 6... e5 {[%clk 0:02:59.5]}
7. Nb3 {[%clk 0:03:02]} 7... Be7 {[%clk 0:02:59.2]} 8. Be3 {[%clk 0:03:02.4]}
8... O-O {[%clk 0:02:58.9]} 9. Qe2 {[%clk 0:03:00.4]} 9... a5 {[%clk 0:02:42.4]}
10. a4 {[%clk 0:02:44.4]} 10... Nb4 {[%clk 0:02:00.9]} 11. O-O-O {[%clk
0:02:42.3]} 11... Bd7 {[%clk 0:01:17.1]} 12. Qf2 {[%clk 0:02:30.7]} 12... Rc8
{[%clk 0:00:50.9]} 13. Bb6 {[%clk 0:02:29.7]} 13... Qe8 {[%clk 0:00:51.4]} 14.
Bxa5 {[%clk 0:02:23.3]} 14... d5 {[%clk 0:00:51.2]} 15. exd5 {[%clk 0:01:50]}
15... Nfxd5 {[%clk 0:00:48.4]} 16. Rxd5 {[%clk 0:01:33.8]} 16... Nxd5 {[%clk
0:00:43.5]} 17. Nxd5 {[%clk 0:01:33.2]} 17... Bxa4 {[%clk 0:00:43.2]} 18. Kb1
{[%clk 0:01:27.1]} 18... Bxb3 {[%clk 0:00:37.6]} 19. cxb3 {[%clk 0:01:26.9]}
19... Bc5 {[%clk 0:00:34.9]} 20. Qd2 {[%clk 0:01:18.4]} 20... Qe6 {[%clk
0:00:27.3]} 21. Bc4 {[%clk 0:01:06.1]} 21... Bd4 {[%clk 0:00:21.1]} 22. Bb4
{[%clk 0:00:57.9]} 22... Qg6+ {[%clk 0:00:06.6]} 23. Bd3 {[%clk 0:00:55.5]}
23... Qe6 {[%clk 0:00:02.7]} 24. Ne7+ {[%clk 0:00:50.6]} 24... Kh8 {[%clk
0:00:02.8]} 25. Nxc8 {[%clk 0:00:50.5]} 25... Rxc8 {[%clk 0:00:03.7]} 26. Rc1
{[%clk 0:00:49.8]} 26... Ra8 {[%clk 0:00:03.4]} 27. Bc4 {[%clk 0:00:38.3]} 27...
Qg6+ {[%clk 0:00:03.4]} 28. Qc2 {[%clk 0:00:36.8]} 28... Qf6 {[%clk 0:00:02.1]}
29. Bc3 {[%clk 0:00:36.1]} 29... g6 {[%clk 0:00:01.8]} 30. Bxd4 {[%clk 0:00:36]}
30... exd4 {[%clk 0:00:02.7]} 31. Qe4 {[%clk 0:00:34.5]} 1-0

[Event "*** Titled Tuesday Blitz"]
[Site "Chess.com"]
[Date "2020.05.19"]
[Round "8"]
[White "mamonika"]
[Black "savagemedusa"]
[Result "1-0"]
[WhiteElo "1995"]
[BlackElo "2233"]
[TimeControl "180+1"]
[EndTime "13:36:01 PDT"]
[Termination "mamonika won by checkmate"]

1. e4 {[%clk 0:03:00.9]} 1... c5 {[%clk 0:02:55.9]} 2. Nf3 {[%clk 0:03:01]} 2...
e6 {[%clk 0:02:50.4]} 3. d4 {[%clk 0:03:00.2]} 3... cxd4 {[%clk 0:02:50.8]} 4.
Nxd4 {[%clk 0:03:01.1]} 4... Nc6 {[%clk 0:02:51]} 5. Be2 {[%clk 0:02:55.6]} 5...
Qc7 {[%clk 0:02:47.1]} 6. O-O {[%clk 0:02:53.5]} 6... a6 {[%clk 0:02:45.4]} 7.
Be3 {[%clk 0:02:42.8]} 7... Nf6 {[%clk 0:02:42.8]} 8. Nd2 {[%clk 0:02:36.8]}
8... Nxd4 {[%clk 0:02:38]} 9. Bxd4 {[%clk 0:02:35.9]} 9... Bc5 {[%clk
0:02:37.8]} 10. c3 {[%clk 0:02:25.8]} 10... e5 {[%clk 0:02:23.1]} 11. Bxc5
{[%clk 0:02:11.3]} 11... Qxc5 {[%clk 0:02:19]} 12. Bc4 {[%clk 0:01:49.1]} 12...
O-O {[%clk 0:02:02.8]} 13. Qf3 {[%clk 0:01:44.5]} 13... d6 {[%clk 0:01:49.7]}
14. h3 {[%clk 0:01:43.3]} 14... Be6 {[%clk 0:01:47.3]} 15. Qd3 {[%clk
0:01:31.8]} 15... Rac8 {[%clk 0:01:37.5]} 16. Bxe6 {[%clk 0:01:22.9]} 16... fxe6
{[%clk 0:01:36.8]} 17. Nb3 {[%clk 0:01:22.7]} 17... Qc7 {[%clk 0:01:31.6]} 18.
Rad1 {[%clk 0:01:22.1]} 18... d5 {[%clk 0:01:31.8]} 19. exd5 {[%clk 0:01:18.2]}
19... exd5 {[%clk 0:01:31.3]} 20. Rfe1 {[%clk 0:01:16.8]} 20... Rfe8 {[%clk
0:01:26.8]} 21. Qf5 {[%clk 0:00:58.6]} 21... Rcd8 {[%clk 0:01:23.7]} 22. Re3
{[%clk 0:00:51.1]} 22... Kh8 {[%clk 0:01:16.8]} 23. Rde1 {[%clk 0:00:48.1]}
23... e4 {[%clk 0:01:11.3]} 24. Nd4 {[%clk 0:00:44.9]} 24... Re5 {[%clk
0:00:59.4]} 25. Qf4 {[%clk 0:00:41.8]} 25... Rde8 {[%clk 0:00:56.6]} 26. Nf3
{[%clk 0:00:21.2]} 26... R5e7 {[%clk 0:00:52.5]} 27. Qxc7 {[%clk 0:00:21]} 27...
Rxc7 {[%clk 0:00:53.4]} 28. Nd4 {[%clk 0:00:20.6]} 28... Nh5 {[%clk 0:00:49.7]}
29. Rd1 {[%clk 0:00:17]} 29... Nf4 {[%clk 0:00:49.4]} 30. Nf5 {[%clk 0:00:14.2]}
30... Rf8 {[%clk 0:00:47.4]} 31. Ng3 {[%clk 0:00:08.7]} 31... Rfc8 {[%clk
0:00:46.3]} 32. Ne2 {[%clk 0:00:07]} 32... Rd7 {[%clk 0:00:45.1]} 33. Nxf4
{[%clk 0:00:06.8]} 33... Rcd8 {[%clk 0:00:43.9]} 34. Ne2 {[%clk 0:00:07.1]}
34... b5 {[%clk 0:00:44.1]} 35. Nd4 {[%clk 0:00:07.6]} 35... b4 {[%clk
0:00:43.9]} 36. cxb4 {[%clk 0:00:07.6]} 36... Rb7 {[%clk 0:00:44.8]} 37. a3
{[%clk 0:00:07.8]} 37... Rc8 {[%clk 0:00:45.2]} 38. Rc3 {[%clk 0:00:07]} 38...
a5 {[%clk 0:00:46.1]} 39. Rxc8# {[%clk 0:00:06.7]} 1-0

[Event "*** Titled Tuesday Blitz"]
[Site "Chess.com"]
[Date "2020.05.19"]
[Round "8"]
[White "ramses135"]
[Black "Kislov_Oleg"]
[Result "1-0"]
[WhiteElo "2504"]
[BlackElo "2368"]
[TimeControl "180+1"]
[EndTime "13:36:02 PDT"]
[Termination "ramses135 won on time"]

1. b3 {[%clk 0:03:00.9]} 1... e5 {[%clk 0:02:59.5]} 2. Bb2 {[%clk 0:02:59.4]}
2... Nc6 {[%clk 0:02:58.4]} 3. e3 {[%clk 0:02:58.8]} 3... Nf6 {[%clk 0:02:53]}
4. Bb5 {[%clk 0:02:58.2]} 4... d6 {[%clk 0:02:46.1]} 5. Ne2 {[%clk 0:02:54.2]}
5... Bd7 {[%clk 0:02:45.7]} 6. f4 {[%clk 0:02:50.4]} 6... exf4 {[%clk
0:02:39.6]} 7. Nxf4 {[%clk 0:02:50.1]} 7... Bg4 {[%clk 0:02:21.6]} 8. Be2 {[%clk
0:02:46.4]} 8... Bxe2 {[%clk 0:02:17.9]} 9. Qxe2 {[%clk 0:02:47.3]} 9... Be7
{[%clk 0:02:15.8]} 10. Nc3 {[%clk 0:02:46.6]} 10... O-O {[%clk 0:02:13.9]} 11.
Ncd5 {[%clk 0:02:39.1]} 11... Ne5 {[%clk 0:02:02]} 12. O-O {[%clk 0:02:31.7]}
12... c6 {[%clk 0:01:44.2]} 13. Nxe7+ {[%clk 0:02:30]} 13... Qxe7 {[%clk
0:01:45.1]} 14. Nd3 {[%clk 0:02:20.6]} 14... Ne4 {[%clk 0:01:32.6]} 15. Nxe5
{[%clk 0:02:15.1]} 15... dxe5 {[%clk 0:01:31.4]} 16. d3 {[%clk 0:02:15.7]} 16...
Nd6 {[%clk 0:01:06.2]} 17. e4 {[%clk 0:02:15.7]} 17... f6 {[%clk 0:01:03.3]} 18.
Qe3 {[%clk 0:02:15.3]} 18... b6 {[%clk 0:00:57.3]} 19. a4 {[%clk 0:02:15.4]}
19... c5 {[%clk 0:00:57.3]} 20. a5 {[%clk 0:02:13.5]} 20... Nb5 {[%clk
0:00:54.2]} 21. Qd2 {[%clk 0:02:04.2]} 21... Nd4 {[%clk 0:00:47.8]} 22. Ra3
{[%clk 0:02:01.7]} 22... b5 {[%clk 0:00:39.4]} 23. Raa1 {[%clk 0:01:49.5]} 23...
Rfd8 {[%clk 0:00:35.9]} 24. Qf2 {[%clk 0:01:44.1]} 24... a6 {[%clk 0:00:32.8]}
25. h3 {[%clk 0:01:43.8]} 25... Rac8 {[%clk 0:00:31.7]} 26. Rfd1 {[%clk
0:01:34.9]} 26... Rd7 {[%clk 0:00:22]} 27. Kh1 {[%clk 0:01:34]} 27... Qd8 {[%clk
0:00:21.7]} 28. Bc3 {[%clk 0:01:31.1]} 28... c4 {[%clk 0:00:17.8]} 29. dxc4
{[%clk 0:01:29.9]} 29... b4 {[%clk 0:00:18.2]} 30. Bxb4 {[%clk 0:01:23.3]} 30...
Nc6 {[%clk 0:00:12.3]} 31. Rxd7 {[%clk 0:01:20.3]} 31... Qxd7 {[%clk 0:00:12.1]}
32. Bc3 {[%clk 0:01:21.2]} 32... Rd8 {[%clk 0:00:11.3]} 33. Kh2 {[%clk
0:01:17.5]} 33... Nd4 {[%clk 0:00:09.7]} 34. Bxd4 {[%clk 0:01:01.4]} 34... exd4
{[%clk 0:00:09.4]} 35. Rd1 {[%clk 0:01:00.3]} 35... Qc7+ {[%clk 0:00:09]} 36.
Qg3 {[%clk 0:01:00.1]} 36... Qxa5 {[%clk 0:00:08.7]} 37. Rd3 {[%clk 0:00:57.4]}
37... Qe5 {[%clk 0:00:04.8]} 38. Qxe5 {[%clk 0:00:52.1]} 38... fxe5 {[%clk
0:00:05.7]} 39. c3 {[%clk 0:00:52.4]} 1-0

[Event "*** Titled Tuesday Blitz"]
[Site "Chess.com"]
[Date "2020.05.19"]
[Round "8"]
[White "Grandelicious"]
[Black "wonderfultime"]
[Result "1-0"]
[WhiteElo "2784"]
[BlackElo "2992"]
[TimeControl "180+1"]
[EndTime "13:36:04 PDT"]
[Termination "Grandelicious won by resignation"]

1. Nf3 {[%clk 0:03:00.9]} 1... Nf6 {[%clk 0:02:53.5]} 2. g3 {[%clk 0:03:00.2]}
2... d5 {[%clk 0:02:52.1]} 3. Bg2 {[%clk 0:03:00.1]} 3... c6 {[%clk 0:02:52.1]}
4. O-O {[%clk 0:02:59.7]} 4... Bg4 {[%clk 0:02:52.6]} 5. h3 {[%clk 0:03:00.2]}
5... Bh5 {[%clk 0:02:52.7]} 6. c4 {[%clk 0:03:00.8]} 6... e6 {[%clk 0:02:52.5]}
7. d4 {[%clk 0:02:59.3]} 7... Nbd7 {[%clk 0:02:52.2]} 8. cxd5 {[%clk 0:02:59.4]}
8... exd5 {[%clk 0:02:40.5]} 9. Ne5 {[%clk 0:02:59.3]} 9... Be7 {[%clk
0:02:35.2]} 10. f4 {[%clk 0:02:54.9]} 10... Nxe5 {[%clk 0:01:25.4]} 11. dxe5
{[%clk 0:02:55.8]} 11... Bc5+ {[%clk 0:00:33.2]} 12. Kh2 {[%clk 0:02:54]} 12...
Nd7 {[%clk 0:00:33.4]} 13. g4 {[%clk 0:02:48.5]} 13... Bg6 {[%clk 0:00:33.5]}
14. f5 {[%clk 0:02:45.7]} 14... Nxe5 {[%clk 0:00:33.9]} 15. Bf4 {[%clk
0:02:38.3]} 15... Bd6 {[%clk 0:00:32.6]} 16. fxg6 {[%clk 0:02:32.7]} 16... hxg6
{[%clk 0:00:30.1]} 17. Kg1 {[%clk 0:02:32.3]} 17... g5 {[%clk 0:00:23.1]} 18.
Bxe5 {[%clk 0:02:23.2]} 18... Bxe5 {[%clk 0:00:24]} 19. Qb3 {[%clk 0:02:23.1]}
19... Qe7 {[%clk 0:00:19.3]} 20. Nd2 {[%clk 0:02:18.3]} 20... O-O {[%clk
0:00:17.9]} 21. e4 {[%clk 0:02:13.7]} 21... d4 {[%clk 0:00:18]} 22. Nf3 {[%clk
0:02:08.8]} 22... Bc7 {[%clk 0:00:15.6]} 23. Kh1 {[%clk 0:02:05]} 23... Rad8
{[%clk 0:00:15.5]} 24. Qxb7 {[%clk 0:02:02.1]} 24... d3 {[%clk 0:00:13.7]} 25.
Rad1 {[%clk 0:01:57.9]} 25... Rfe8 {[%clk 0:00:09.6]} 26. Qxc6 {[%clk
0:01:53.5]} 26... Bf4 {[%clk 0:00:09.9]} 27. Qc3 {[%clk 0:01:46]} 27... Qd6
{[%clk 0:00:04.2]} 28. e5 {[%clk 0:01:42.8]} 28... Qd7 {[%clk 0:00:04.7]} 29. b4
{[%clk 0:01:29.3]} 29... Re6 {[%clk 0:00:04.9]} 30. Rfe1 {[%clk 0:01:19.4]}
30... Rh6 {[%clk 0:00:05.1]} 31. e6 {[%clk 0:01:19.9]} 31... fxe6 {[%clk
0:00:04.6]} 32. Re4 {[%clk 0:01:13.8]} 32... e5 {[%clk 0:00:04.8]} 33. Nxe5
{[%clk 0:01:14]} 33... Bxe5 {[%clk 0:00:01.4]} 34. Qxe5 {[%clk 0:01:11.6]} 34...
d2 {[%clk 0:00:01.9]} 35. Qxg5 {[%clk 0:00:55.6]} 35... Rd6 {[%clk 0:00:01.2]}
36. Re7 {[%clk 0:00:53.4]} 1-0

[Event "*** Titled Tuesday Blitz"]
[Site "Chess.com"]
[Date "2020.05.19"]
[Round "8"]
[White "Shukh_Nikolay"]
[Black "GMALMEIDA"]
[Result "1-0"]
[WhiteElo "2558"]
[BlackElo "2656"]
[TimeControl "180+1"]
[EndTime "13:36:04 PDT"]
[Termination "Shukh_Nikolay won by resignation"]

1. e4 {[%clk 0:03:00.9]} 1... d6 {[%clk 0:02:55.9]} 2. d4 {[%clk 0:02:59.1]}
2... Nf6 {[%clk 0:02:54.7]} 3. Nc3 {[%clk 0:02:58]} 3... c6 {[%clk 0:02:54.7]}
4. Be3 {[%clk 0:02:54.7]} 4... Nbd7 {[%clk 0:02:52.2]} 5. f3 {[%clk 0:02:48.5]}
5... e5 {[%clk 0:02:52]} 6. Nge2 {[%clk 0:02:47.4]} 6... h5 {[%clk 0:02:51.3]}
7. Qd2 {[%clk 0:02:45.4]} 7... Be7 {[%clk 0:02:51.1]} 8. g3 {[%clk 0:02:33.9]}
8... Qc7 {[%clk 0:02:50.5]} 9. h4 {[%clk 0:02:30.3]} 9... b5 {[%clk 0:02:49]}
10. Bh3 {[%clk 0:02:14.9]} 10... Bb7 {[%clk 0:02:45.9]} 11. O-O {[%clk
0:02:03.3]} 11... O-O {[%clk 0:02:43.9]} 12. Nd1 {[%clk 0:01:47.2]} 12... d5
{[%clk 0:02:40.7]} 13. Nf2 {[%clk 0:01:42.8]} 13... dxe4 {[%clk 0:02:32.4]} 14.
Nxe4 {[%clk 0:01:37.8]} 14... Nxe4 {[%clk 0:02:31.8]} 15. fxe4 {[%clk
0:01:37.3]} 15... exd4 {[%clk 0:02:31.8]} 16. Bxd4 {[%clk 0:01:35.9]} 16... Rad8
{[%clk 0:02:22.7]} 17. Qf4 {[%clk 0:01:18.9]} 17... Qxf4 {[%clk 0:02:13.8]} 18.
Nxf4 {[%clk 0:01:17.1]} 18... g6 {[%clk 0:02:12.6]} 19. e5 {[%clk 0:01:05.5]}
19... c5 {[%clk 0:01:51.6]} 20. e6 {[%clk 0:00:49]} 20... cxd4 {[%clk
0:01:50.6]} 21. exd7 {[%clk 0:00:45.9]} 21... Bc6 {[%clk 0:01:48.7]} 22. Nd3
{[%clk 0:00:35.2]} 22... Bxd7 {[%clk 0:01:46.6]} 23. Bxd7 {[%clk 0:00:34.4]}
23... Rxd7 {[%clk 0:01:47.5]} 24. Rae1 {[%clk 0:00:33.7]} 24... Rc8 {[%clk
0:01:46.5]} 25. Rf2 {[%clk 0:00:30.3]} 25... Bd6 {[%clk 0:01:45.6]} 26. Kg2
{[%clk 0:00:30]} 26... Rdc7 {[%clk 0:01:41.8]} 27. Ree2 {[%clk 0:00:30]} 27...
Kg7 {[%clk 0:01:41.5]} 28. Kf3 {[%clk 0:00:29.5]} 28... a5 {[%clk 0:01:39.4]}
29. Kg2 {[%clk 0:00:29.3]} 29... a4 {[%clk 0:01:30.4]} 30. a3 {[%clk 0:00:28.9]}
30... Re7 {[%clk 0:01:20.9]} 31. Rxe7 {[%clk 0:00:27.6]} 31... Bxe7 {[%clk
0:01:21.8]} 32. Re2 {[%clk 0:00:27.6]} 32... Bd6 {[%clk 0:01:21.6]} 33. Kf3
{[%clk 0:00:27.7]} 33... f6 {[%clk 0:01:21.4]} 34. Kg2 {[%clk 0:00:27.4]} 34...
Kf7 {[%clk 0:01:21.2]} 35. Kf3 {[%clk 0:00:27.4]} 35... g5 {[%clk 0:01:20]} 36.
hxg5 {[%clk 0:00:18.9]} 36... fxg5 {[%clk 0:01:20.9]} 37. g4 {[%clk 0:00:17.8]}
37... h4 {[%clk 0:01:13.9]} 38. Kg2 {[%clk 0:00:17.9]} 38... Kf6 {[%clk
0:01:04.2]} 39. Rf2+ {[%clk 0:00:17.3]} 39... Ke6 {[%clk 0:01:04.5]} 40. Re2+
{[%clk 0:00:17.4]} 40... Kd5 {[%clk 0:01:04.9]} 41. Rf2 {[%clk 0:00:17.7]} 41...
Rf8 {[%clk 0:01:04.7]} 42. Re2 {[%clk 0:00:17.5]} 42... Rf7 {[%clk 0:01:02.6]}
43. Rd2 {[%clk 0:00:13.9]} 43... Re7 {[%clk 0:01:00.2]} 44. Rf2 {[%clk
0:00:13.5]} 44... Rf7 {[%clk 0:00:58.9]} 45. Rxf7 {[%clk 0:00:12.7]} 1-0

[Event "*** Titled Tuesday Blitz"]
[Site "Chess.com"]
[Date "2020.05.19"]
[Round "8"]
[White "Piotrek1979"]
[Black "BeanScreen"]
[Result "0-1"]
[WhiteElo "2355"]
[BlackElo "2600"]
[TimeControl "180+1"]
[EndTime "13:36:04 PDT"]
[Termination "BeanScreen won by resignation"]

1. Nf3 {[%clk 0:02:59.9]} 1... d5 {[%clk 0:02:59.7]} 2. c4 {[%clk 0:02:58.8]}
2... dxc4 {[%clk 0:03:00.6]} 3. Qa4+ {[%clk 0:02:57.9]} 3... Nc6 {[%clk
0:03:00.5]} 4. Qxc4 {[%clk 0:02:57.5]} 4... e5 {[%clk 0:03:00.7]} 5. d3 {[%clk
0:02:56.6]} 5... Nf6 {[%clk 0:03:00.7]} 6. g3 {[%clk 0:02:54.7]} 6... Be6 {[%clk
0:03:00.5]} 7. Qc2 {[%clk 0:02:53.8]} 7... Nb4 {[%clk 0:02:59.9]} 8. Qa4+ {[%clk
0:02:26.3]} 8... Qd7 {[%clk 0:02:56.8]} 9. Qxd7+ {[%clk 0:02:23.7]} 9... Nxd7
{[%clk 0:02:56.5]} 10. Na3 {[%clk 0:02:21.7]} 10... Nxa2 {[%clk 0:02:55.8]} 11.
Ng5 {[%clk 0:01:47.6]} 11... Bd5 {[%clk 0:02:50.6]} 12. e4 {[%clk 0:01:46]}
12... Nxc1 {[%clk 0:02:38]} 13. exd5 {[%clk 0:01:24.5]} 13... Bb4+ {[%clk
0:02:38.9]} 14. Kd1 {[%clk 0:01:21.6]} 14... Nb3 {[%clk 0:02:39.8]} 15. Ra2
{[%clk 0:01:12]} 15... Nd4 {[%clk 0:02:36.6]} 16. Bh3 {[%clk 0:01:00]} 16... Nb6
{[%clk 0:02:33.7]} 17. Nc2 {[%clk 0:00:48.1]} 17... Nxc2 {[%clk 0:02:28.6]} 18.
Kxc2 {[%clk 0:00:49]} 18... Nxd5 {[%clk 0:02:28.8]} 19. Kb3 {[%clk 0:00:29.7]}
19... Be7 {[%clk 0:02:27.8]} 20. Nf3 {[%clk 0:00:22.6]} 20... Bd6 {[%clk
0:02:25.4]} 21. Nxe5 {[%clk 0:00:20.9]} 21... O-O {[%clk 0:02:14.4]} 22. Nc4
{[%clk 0:00:19.3]} 22... Bc5 {[%clk 0:02:13.6]} 23. f4 {[%clk 0:00:19.1]} 23...
Rfe8 {[%clk 0:02:11.5]} 24. Bg2 {[%clk 0:00:19.3]} 24... c6 {[%clk 0:02:10.6]}
25. Ra5 {[%clk 0:00:18.7]} 25... b6 {[%clk 0:02:06.7]} 26. Raa1 {[%clk
0:00:18.6]} 26... Re2 {[%clk 0:02:06.2]} 27. Bf3 {[%clk 0:00:18.8]} 27... Rf2
{[%clk 0:02:06.2]} 28. Raf1 {[%clk 0:00:17.4]} 28... Rxf1 {[%clk 0:02:01.8]} 29.
Rxf1 {[%clk 0:00:16.7]} 29... Re8 {[%clk 0:02:02.4]} 30. Ne5 {[%clk 0:00:16.1]}
30... Ne3 {[%clk 0:01:57.7]} 31. Bxc6 {[%clk 0:00:15.2]} 31... Rxe5 {[%clk
0:01:41]} 32. fxe5 {[%clk 0:00:15.4]} 32... Nxf1 {[%clk 0:01:41.1]} 33. Kc4
{[%clk 0:00:16.3]} 33... Nxh2 {[%clk 0:01:41]} 34. d4 {[%clk 0:00:16.6]} 34...
Be7 {[%clk 0:01:40]} 35. Kb5 {[%clk 0:00:13.5]} 35... Nf1 {[%clk 0:01:39.6]} 36.
Ka6 {[%clk 0:00:13.3]} 36... Nxg3 {[%clk 0:01:39]} 37. Kxa7 {[%clk 0:00:13.7]}
37... Bd8 {[%clk 0:01:37.5]} 38. Kb7 {[%clk 0:00:13.1]} 38... h5 {[%clk
0:01:36.7]} 39. Kc8 {[%clk 0:00:12.5]} 39... Bg5 {[%clk 0:01:36.1]} 40. d5
{[%clk 0:00:12.8]} 40... Nf5 {[%clk 0:01:23.5]} 41. d6 {[%clk 0:00:12]} 41...
Bf4 {[%clk 0:01:22.8]} 42. d7 {[%clk 0:00:06.1]} 42... Ne7+ {[%clk 0:01:22.4]}
43. Kb7 {[%clk 0:00:05.6]} 43... Nxc6 {[%clk 0:01:22]} 44. Kxc6 {[%clk
0:00:05.7]} 44... Bg5 {[%clk 0:01:22.3]} 45. Kxb6 {[%clk 0:00:05.6]} 45... h4
{[%clk 0:01:22.3]} 46. Kc7 {[%clk 0:00:06]} 46... h3 {[%clk 0:01:22.5]} 47. e6
{[%clk 0:00:06.1]} 47... fxe6 {[%clk 0:01:22.4]} 48. b4 {[%clk 0:00:05.8]} 48...
h2 {[%clk 0:01:22.5]} 49. b5 {[%clk 0:00:06.7]} 49... h1=Q {[%clk 0:01:22.9]}
50. b6 {[%clk 0:00:07.6]} 50... Qc1+ {[%clk 0:01:22.4]} 0-1

[Event "*** Titled Tuesday Blitz"]
[Site "Chess.com"]
[Date "2020.05.19"]
[Round "8"]
[White "Salem-AR"]
[Black "fighter2jz"]
[Result "1-0"]
[WhiteElo "3039"]
[BlackElo "2761"]
[TimeControl "180+1"]
[EndTime "13:36:06 PDT"]
[Termination "Salem-AR won by resignation"]

1. d4 {[%clk 0:03:00.9]} 1... Nf6 {[%clk 0:02:59.7]} 2. c4 {[%clk 0:03:01.7]}
2... e6 {[%clk 0:03:00]} 3. Nf3 {[%clk 0:03:02.3]} 3... d5 {[%clk 0:02:59.9]} 4.
g3 {[%clk 0:03:03]} 4... Be7 {[%clk 0:03:00.1]} 5. Bg2 {[%clk 0:03:03.7]} 5...
O-O {[%clk 0:03:00.4]} 6. O-O {[%clk 0:03:04.6]} 6... dxc4 {[%clk 0:03:00.3]} 7.
Qc2 {[%clk 0:03:04.7]} 7... a6 {[%clk 0:03:00.6]} 8. a4 {[%clk 0:03:05.4]} 8...
Bd7 {[%clk 0:03:00.8]} 9. Qxc4 {[%clk 0:03:06.2]} 9... Bc6 {[%clk 0:03:01.1]}
10. Bg5 {[%clk 0:03:06.9]} 10... Nbd7 {[%clk 0:02:58.7]} 11. Nc3 {[%clk
0:03:06.5]} 11... Nb6 {[%clk 0:02:53.5]} 12. Qd3 {[%clk 0:03:06]} 12... h6
{[%clk 0:02:50.5]} 13. Bxf6 {[%clk 0:03:04.7]} 13... Bxf6 {[%clk 0:02:50]} 14.
e4 {[%clk 0:03:05]} 14... e5 {[%clk 0:02:40]} 15. Rfd1 {[%clk 0:02:52.8]} 15...
exd4 {[%clk 0:02:21.4]} 16. Nxd4 {[%clk 0:02:53.7]} 16... Bxd4 {[%clk
0:02:14.1]} 17. Qxd4 {[%clk 0:02:54.6]} 17... Qxd4 {[%clk 0:02:03.4]} 18. Rxd4
{[%clk 0:02:55.5]} 18... Rfd8 {[%clk 0:02:03.7]} 19. Rad1 {[%clk 0:02:54.9]}
19... Rxd4 {[%clk 0:02:03.8]} 20. Rxd4 {[%clk 0:02:55.8]} 20... Kf8 {[%clk
0:02:04.2]} 21. f4 {[%clk 0:02:42.6]} 21... Ke7 {[%clk 0:02:03.6]} 22. a5 {[%clk
0:02:42.7]} 22... Nd7 {[%clk 0:02:02.8]} 23. b4 {[%clk 0:02:38.4]} 23... Rd8
{[%clk 0:01:58.6]} 24. Kf2 {[%clk 0:02:37.8]} 24... Nf6 {[%clk 0:01:49]} 25.
Rxd8 {[%clk 0:02:37.6]} 25... Kxd8 {[%clk 0:01:47]} 26. Bf3 {[%clk 0:02:38.5]}
26... Ne8 {[%clk 0:01:42.1]} 27. Ke3 {[%clk 0:02:37.7]} 27... Nd6 {[%clk
0:01:40.2]} 28. Be2 {[%clk 0:02:38]} 28... Ke7 {[%clk 0:01:38.9]} 29. h4 {[%clk
0:02:35.2]} 29... g6 {[%clk 0:01:23.6]} 30. g4 {[%clk 0:02:30.2]} 30... f6
{[%clk 0:01:16.9]} 31. Kd4 {[%clk 0:02:02.4]} 31... Nf7 {[%clk 0:00:42.9]} 32.
Bc4 {[%clk 0:01:58.1]} 32... Nd6 {[%clk 0:00:40.5]} 33. Bd3 {[%clk 0:01:56.6]}
33... Nf7 {[%clk 0:00:29.5]} 34. Bc4 {[%clk 0:01:24.2]} 34... Nd6 {[%clk
0:00:27.6]} 35. Bb3 {[%clk 0:01:24.5]} 35... h5 {[%clk 0:00:23.1]} 36. gxh5
{[%clk 0:01:22.1]} 36... gxh5 {[%clk 0:00:23.2]} 37. Bd1 {[%clk 0:01:19.4]}
37... f5 {[%clk 0:00:13.3]} 38. e5 {[%clk 0:01:15.6]} 38... Ne8 {[%clk
0:00:13.4]} 39. Bxh5 {[%clk 0:01:12.3]} 39... Ng7 {[%clk 0:00:13.6]} 40. Be2
{[%clk 0:01:12.5]} 40... Be8 {[%clk 0:00:12.5]} 41. Nd5+ {[%clk 0:01:12]} 41...
Kd8 {[%clk 0:00:12.4]} 42. Nf6 {[%clk 0:01:11]} 42... Bf7 {[%clk 0:00:09.1]} 43.
h5 {[%clk 0:01:09.1]} 43... Ne6+ {[%clk 0:00:09.4]} 44. Ke3 {[%clk 0:01:09.4]}
44... Nf8 {[%clk 0:00:09.6]} 45. Bd3 {[%clk 0:01:05.6]} 45... Nd7 {[%clk
0:00:07.7]} 46. Nxd7 {[%clk 0:01:05.1]} 46... Kxd7 {[%clk 0:00:08]} 47. Bxf5+
{[%clk 0:01:05.3]} 1-0